Cogmind - Beta 16.1 @@@ ROGUE MODE // 2026.04.23 @ 00:55:18 Player: KURIIRI Result: Destroyed by KW-2T0(R) with Subdweller Machine Gun Performance ------------- Evolutions (0) 0 Regions Visited (2) 400 Robots Destroyed (30) 150 Value Destroyed (751) 751 Prototype IDs (13) 260 Alien Tech Used (0) 0 Bonus (-48) -48 TOTAL SCORE: 1513 Bonus ------- Friendly Fire -48 Cogmind --------- Core Integrity 0/250 Matter 300/300 Energy 240/250 System Corruption 0% Temperature Cool (0) Movement Rolling (95) Ox1 Location -10/Subcaves Parts ------- > --- POWER (1) -------- Ion Engine > --- PROPULSION (2) --- Wheel > --- UTILITY (2) ------ (None) > --- WEAPON (2) ------- Subdweller Beam Cannon > --- INVENTORY (5) ---- Makeshift Power Source Meta Core Hacking Suite Battle Rifle Multitool Peak State ------------ > --- POWER ------------ Ion Engine > --- PROPULSION ------- Light Treads Wheel > --- UTILITY ---------- Scrap Shield > --- WEAPON ----------- Subdweller Laser Subdweller Beam Cannon > --- INVENTORY -------- Meta Core Hacking Suite Battle Rifle Battle Cannon [Rating: 13] Favorites ----------- Power Ion Engine Engine Ion Engine Propulsion Light Treads Treads Light Treads Leg Aluminum Leg Wheel Wheel Utility Seismic Detector Device Seismic Detector Storage Large Storage Unit Protection Scrap Shield Weapon Assault Rifle Energy Gun Subdweller Laser Energy Cannon Subdweller Beam Cannon Ballistic Gun Assault Rifle Ballistic Cannon Battle Cannon Launcher Grenade Launcher Build | -11 -10 -10 ------- Run | Yrd Mat Sub Slots Evolved . | . . . Power . | . . . Propulsion . | . . . Utility . | . . . Weapon . | . . . Parts Attached 17 | 3 5 9 Power 2 | . 1 1 Engine 2 | . 1 1 Core . | . . . Reactor . | . . . Propulsion 4 | 2 . 2 Treads 3 | 2 . 1 Leg . | . . . Wheel 1 | . . 1 Hover . | . . . Flight . | . . . Utility 3 | 1 1 1 Device 1 | 1 . . Storage 1 | . 1 . Processor . | . . . Hackware . | . . . Protection 1 | . . 1 Artifact . | . . . Weapon 8 | . 3 5 Energy Gun 1 | . . 1 Energy Cannon 1 | . . 1 Ballistic Gun 3 | . 1 2 Ballistic Cannon 2 | . 2 . Launcher 1 | . . 1 Special Weapon . | . . . Impact Weapon . | . . . Slashing Weapon . | . . . Piercing Weapon . | . . . Special Melee Weapon . | . . . Unidentified Prototypes . | . . . Parts Lost 7 | . . 7 Power 1 | . . 1 Propulsion 2 | . . 2 Utility 2 | . . 2 Weapon 2 | . . 2 Highest Loss Streak 3 | . . 3 To Critical Strikes . | . . . Average Backups 10 | 4 9 11 Power 1 | 1 1 1 Propulsion 1 | 2 2 1 Utility 3 | . 2 3 Weapon 2 | 1 2 3 Tool/Special . | . . . Unused Backups 11 | . 1 10 Power 1 | . . 1 Propulsion . | . . . Utility 6 | . . 6 Weapon 3 | . 1 2 Tool/Special 1 | . . 1 Average Slot Usage (%) 88 | . 98 80 Engine 13 | . 13 13 Treads 22 | . 27 18 Wheel 3 | . . 5 Device 10 | . 13 7 Storage 10 | . 14 8 Energy Gun 3 | . . 6 Energy Cannon 3 | . . 5 Ballistic Gun 11 | . 16 7 Ballistic Cannon 7 | . 10 5 Peak Build Rating 13 | 7 9 13 Average Rating 8 | 6 7 9 On Entrance 7 | 6 7 9 Avg Prop Armor Cover (%) 5 | . . 5 Naked Turns . | . . . Heaviest Build 35 | 14 31 35 Greatest Support 40 | 40 40 40 Greatest Overweight (x) 6 | . 6 3 Average Overweight (x) . | . . . Largest Inventory Capacity 15 | 8 15 15 Average Capacity 12 | 8 13 11 Most Carried 15 | 6 15 15 Average Carried 10 | 4 9 11 Final Capacity 15 | 8 15 5 Final Carried 15 | 4 15 5 Class Distribution -------------------- 93% | Mutant 6% | Subdweller-Mutant Dominant Class ---------------- Mutant | -10/Materials Mutant | -10/Subcaves Resources | -11 -10 -10 ----------- Run | Yrd Mat Sub Matter Collected 1037 | 248 399 390 Remotely . | . . . Salvage Created 833 | 70 383 380 Parts 70 | 6 40 24 Haulers Intercepted 1 | . 1 . Recyclers Shooed 2 | 1 1 . Parts Field Recycled . | . . . Retrieved Matter . | . . . Parts Self-Destructed 8 | . . 8 Prevented . | . . . Parts Restored . | . . . Kills | -11 -10 -10 ------- Run | Yrd Mat Sub Combat Hostiles Destroyed 24 | . 13 11 Guns 17 | . 11 6 Cannons 6 | . 2 4 AOE 1 | . . 1 Classes Destroyed 9 | 2 6 1 Tunneler 1 | 1 . . Hauler 1 | . 1 . Recycler 1 | 1 . . Operator 1 | . 1 . Watcher 2 | . 2 . Swarmer 9 | . 9 . Grunt 2 | . 2 . Artisan 2 | . . 2 Subdweller 13 | . 2 11 Best Kill Streak 3 | 2 3 2 Combat Bots Only 3 | . 3 2 Max Kills in Single Turn 1 | 1 1 1 Gunslinging . | . . . Exploded 1 | . . 1 Melee . | . . . Uniques/NPCs Destroyed . | . . . Combat | -11 -10 -10 -------- Run | Yrd Mat Sub Hostile Shots Fired 111 | . 52 59 Missed 26 | . 10 16 Hits 85 | . 42 43 Projectile 85 | . 42 43 Critical Strikes 6 | . 2 4 Damage Taken 1497 | . 393 1104 Core 264 | . 76 188 Absorbed by Shields . | . . . Regen/Repaired (Parts) 152 | . 152 . Core Remaining (%) 100 | 100 . . Volleys Fired 110 | 11 35 64 Largest 2 | 2 2 2 Hottest 93 | 40 53 93 Shots Fired 175 | 22 69 84 Gun 111 | 22 48 41 Cannon 60 | . 21 39 Launcher 4 | . . 4 Special . | . . . Kinetic 118 | 22 69 27 Thermal 53 | . . 53 Explosive 4 | . . 4 Electromagnetic . | . . . Robot Hit Streak 12 | 6 8 12 Robot Miss Streak 4 | 4 3 3 Penetration Max . | . . . Secondary Targets 4 | . 2 2 Max Gunslinging Chain 1 | . 1 1 Shots Hit Robots 109 | 13 39 57 Core Hits 40 | 4 19 17 Critical Kills 1 | . 1 . Critical Parts Destroyed 1 | . 1 . Critical Strikes 4 | . 3 1 Destroy 3 | . 2 1 Blast 1 | . 1 . Melee Attacks . | . . . Impact . | . . . Slashing . | . . . Piercing . | . . . Sneak Attacks . | . . . Combat Hostiles . | . . . Follow-up Attacks . | . . . Damage Inflicted 2116 | 138 541 1437 Guns 934 | 138 357 439 Cannons 942 | . 175 767 Explosions 231 | . . 231 Melee . | . . . Ramming 9 | . 9 . Kinetic 1051 | 138 532 381 Thermal 825 | . . 825 Explosive 231 | . . 231 Electromagnetic . | . . . Impact . | . . . Slashing . | . . . Piercing . | . . . Highest Corruption . | . . . Average Corruption . | . . . Corruption Purged . | . . . Corruption Blocked . | . . . Overload Shots . | . . . Overflow Damage 28 | . . 28 Projectiles 28 | . . 28 Explosions . | . . . Melee . | . . . Knockbacks 2 | . 1 1 Impact . | . . . Kinetic 2 | . 1 1 Secondary . | . . . Self-Inflicted Damage 71 | . . 71 Shots 4 | . . 4 Rammed 2 | . 2 . Targets Rammed 2 | . 2 . Kicked . | . . . Crushed . | . . . Highest Temperature 732 | . 2 732 Average Temperature 390 | . 2 424 Received Heat Transfer 986 | . 18 968 Effects 8 | . . 8 Shutdowns 1 | . . 1 Interference 1 | . . 1 Matter Decay 2 | . . 2 Damage (minor) 3 | . . 3 Damage (core) 1 | . . 1 Siege Activations . | . . . Martial Activations . | . . . Shielding Activations . | . . . Robots Disrupted . | . . . Combat Hostiles . | . . . Robots Corrupted . | . . . Combat Hostiles . | . . . Parts Fried . | . . . Impact Corruptions . | . . . Robots Melted . | . . . Combat Hostiles . | . . . Parts Melted 1 | . . 1 Heat Transferred 1077 | . . 1077 Parts Sabotaged . | . . . Parts Stolen . | . . . Parts Stripped . | . . . Power Chain Reactions . | . . . Alert | -11 -10 -10 ------- Run | Yrd Mat Sub Maximum Alert Level . | . . . Low Security (%) 100 | 100 100 . Level 1 . | . . . Level 2 . | . . . Level 3 . | . . . Level 4 . | . . . Level 5 . | . . . High Security . | . . . Max Security . | . . . Peak Influence 148 | 10 148 . Initial . | . . . Average 44 | 2 45 . Influence Increases 392 | 10 382 . Destroy 0b10 Robot/C 220 | . 220 . Destroy 0b10 Robot/NC 30 | 10 20 . Destroy Leader 46 | . 46 . Successful Hack 19 | . 19 . Select Force Hacks 30 | . 30 . Disable Machine 15 | . 15 . Destroy Structure 2 | . 2 . Lose Combat Pursuer 30 | . 30 . Influence Decreases 392 | 10 371 11 Entered New Map 6 | . . 6 Time Decay 386 | 10 371 5 Squads Dispatched 3 | . 3 . Investigation 2 | . 2 . Extermination . | . . . Reinforcement 1 | . 1 . Assault . | . . . Garrison . | . . . Intercept . | . . . Searches Triggered . | . . . Construction Impeded . | . . . Haulers Reinforced . | . . . Active Scanning Responses . | . . . Cargo Convoy Interrupts . | . . . Stealth | -11 -10 -10 --------- Run | Yrd Mat Sub Distress Signals 2 | . 2 . Communications Jammed . | . . . Distress Signals . | . . . Times Spotted 33 | . 21 12 Peak Tracking Total 4 | . 4 2 Tactical Retreats 2 | . 2 . Traps | -11 -10 -10 ------- Run | Yrd Mat Sub Traps Triggered 4 | . 4 . Indirectly . | . . . Trap Hack Attempts . | . . . Triggered . | . . . Disarmed . | . . . Reprogrammed . | . . . Reused . | . . . Traps Extracted . | . . . Installed . | . . . Triggered . | . . . Machines | -11 -10 -10 ---------- Run | Yrd Mat Sub Machines Disabled 2 | . 1 1 Max in Single Turn 1 | . 1 1 Machines Repaired . | . . . Machines Dismantled . | . . . Machines Sabotaged . | . . . Overloaded Fab Kills . | . . . Hacking | -11 -10 -10 --------- Run | Yrd Mat Sub Machines Accessed 8 | . 7 1 Terminals 5 | . 5 . Fabricators . | . . . Repair Stations 1 | . 1 . Recycling Units 1 | . 1 . Scanalyzers . | . . . Garrison Access . | . . . Total Hacks 22 | . 21 1 Successful 16 | . 15 1 Failed 6 | . 6 . Catastrophic . | . . . Database Lockouts . | . . . Manual 17 | . 17 . Terminals 15 | . 15 . Fabricators . | . . . Repair Stations 5 | . 5 . Recycling Units 1 | . 1 . Scanalyzers . | . . . Garrison Access . | . . . Terminal Hacks 3 | . 2 1 Robot Analysis 2 | . 2 . Proto ID Catalog 1 | . . 1 Fabricator Hacks . | . . . Repair Station Hacks 4 | . 4 . Scan Component 2 | . 2 . Repair 2 | . 2 . Recycling Unit Hacks . | . . . Scanalyzer . | . . . Garrison Access Hacks . | . . . Unauthorized Hacks 9 | . 9 . Terminals 8 | . 8 . Botnet 2 | . 2 . Operators 1 | . 1 . Skim 5 | . 5 . Fabricators . | . . . Repair Stations . | . . . Recycling Units 1 | . 1 . Tunnel 1 | . 1 . Scanalyzers . | . . . Garrison Access . | . . . Data Cores Recovered . | . . . Used . | . . . Hacking Detections 5 | . 5 . Full Trace Events . | . . . Feedback Events . | . . . Feedback Blocked . | . . . Robot Schematics Acquired . | . . . Robots Built . | . . . Authchips . | . . . Time . | . . . Total Robot Build Rating . | . . . Part Schematics Acquired . | . . . Parts Built . | . . . Authchips . | . . . Time . | . . . Total Part Build Rating . | . . . Part Studies Acquired . | . . . Parts Repaired 2 | . 2 . Time 52 | . 52 . Parts Recycled . | . . . Recycled Matter . | . . . Retrieved Matter . | . . . Retrieved Components . | . . . Parts Scanalyzed . | . . . Part Schematics Acquired . | . . . Parts Damaged . | . . . Bothacking | -11 -10 -10 ------------ Run | Yrd Mat Sub Used RIF Installer . | . . . Robots Hacked . | . . . Non-combat . | . . . Combat . | . . . Robot Hacks Applied . | . . . Relay Couplers Released . | . . . Fabnet Peak Effective % . | . . . Robots Rewired . | . . . Allies Hacked . | . . . Hacks Repelled . | . . . Allies | -11 -10 -10 -------- Run | Yrd Mat Sub Total Allies . | . . . Largest Group . | . . . Highest-Rated Group . | . . . Highest-Rated Ally . | . . . Total Orders . | . . . Ally Attacks . | . . . Total Damage . | . . . Kills . | . . . Allies Corrupted . | . . . Allies Melted . | . . . Intel | -11 -10 -10 ------- Run | Yrd Mat Sub Active Infowar (turns) 2089 | 11 1220 858 Seismic 2089 | 11 1220 858 Robot Analysis Total 2 | . 2 . Derelict Logs Recovered 2 | . . 2 Drone Launches . | . . . Drone Recoveries . | . . . Exploration | -11 -10 -10 ------------- Run | Yrd Mat Sub Turns Passed 2924 | 52 1234 1638 Spaces Moved 1693 | 11 601 1081 Core 1 | . 1 . Treads 1152 | 11 600 541 Legs . | . . . Wheels 540 | . . 540 Hover . | . . . Flight . | . . . Fastest Speed 95 | 160 160 95 Average Speed 142 | 160 160 131 Slowest Speed 350 | 160 350 240 Overloaded Moves . | . . . Propulsion Burnouts . | . . . Robots Hopped . | . . . Potential Cave-ins . | . . . Cave-ins Triggered . | . . . Exploration Rate (%) 53 | 3 91 66 Regions Visited 2 Branch Regions 1 Pre-discovered Areas 2 | . 2 . Known Exits Taken . | . . . Unknown Exits Taken 2 | 1 1 . Scrap Searched 3 | . . 3 Spaces Dug 1 | . 1 . Terrain Destroyed 7 | . 1 6 Melee . | . . . Projectile 3 | . 1 2 AOE 4 | . . 4 Terrain Rammed . | . . . Walls Destroyed . | . . . Machines Disabled . | . . . Actions | -11 -10 -10 --------- Run | Yrd Mat Sub Total 2039 | 26 799 1214 Wait 184 | . 141 43 Move 1691 | 10 600 1081 Hop . | . . . Pick Up 17 | . 10 7 Fast Attach 13 | 1 8 4 Attach 4 | 2 . 2 Detach 1 | . . 1 Swap 6 | . 3 3 Drop 10 | 2 . 8 Fire 110 | 11 35 64 Melee . | . . . Ram . | . . . Kick . | . . . Crush 2 | . 2 . Escape Stasis . | . . . Rewire . | . . . Trap . | . . . Miscellaneous 1 | . . 1 Route ------- -11/Scrapyard -10/Materials (discovered 5 exits: [*Mat x3] / [*Min] / *Sub) -10/Subcaves (discovered 3 exits: *Mat x2 / Rec) History --------- Turn | Location | Event 18 | -11/Scrapyard | Discovered new exit (range 2) 53 | -11/Scrapyard | Entered Materials 100 | -10/Materials | Discovered new exit (range 12) 153 | -10/Materials | Discovered new exit (range 9) 231 | -10/Materials | Discovered new exit (range 10) 328 | -10/Materials | Build established: Mutant 553 | -10/Materials | Derelicts attacked the area 571 | -10/Materials | Discovered new exit (range 15) 714 | -10/Materials | Learned location of 2 exits from Subcaves 759 | -10/Materials | Learned location of 2 exits from Subcaves 796 | -10/Materials | Learned location of 2 exits from Mines 838 | -10/Materials | Learned location of 1 exit from Storage 846 | -10/Materials | Learned 2 Mines zone layouts 847 | -10/Materials | Learned 4 Recycling zone layouts 856 | -10/Materials | Learned location of Recycling (-9) 874 | -10/Materials | Learned 2 Storage zone layouts 904 | -10/Materials | Learned location of 2 exits from Mines 908 | -10/Materials | Repaired Lgt. Treads 935 | -10/Materials | Repaired Ion Engine 1045 | -10/Materials | Discovered new exit (range 15) 1287 | -10/Materials | Entered Subcaves 1288 | -10/Subcaves | Identified exit to Materials 1288 | -10/Subcaves | Identified exit to Recycling 1289 | -10/Subcaves | Learned 2 Materials zone layouts 1443 | -10/Subcaves | A swath of the cavern ceiling suddenly collapsed 1714 | -10/Subcaves | Shifting Twisted Machinery released Mak. Power Source 1720 | -10/Subcaves | Shifting Twisted Machinery released Sub. Laser 1990 | -10/Subcaves | Visited 4L-MR0's lab 2008 | -10/Subcaves | Found Meta Core 2251 | -10/Subcaves | Core integrity fell below 50% 2266 | -10/Subcaves | Core integrity fell below 20% 2482 | -10/Subcaves | Ambushed by Subdwellers from Twisted Machinery 2525 | -10/Subcaves | Lost 3 parts (1n1u1w) 2925 | -10/Subcaves | Destroyed by KW-2T0(R) with Subdweller Machine Gun Last Messages --------------- 02503_ VC-WWJ(R) affixes Scrap Shield Fragment to Scrap Shield. 02504_ VC-WWJ(R) destroyed. 02545_ Searching scrap... 02545_ Found Sub. Laser. 02545_ Found 54 Matter. 02598_ Acquired derelict log, extracted data. Data stored: Mines entrances (x2). 02713_ HN-9QG(u) builds Twisted Machinery. 02779_ Subatomizers dissect the Sub. Power Source. 02855_ Destroyed Wheel. 02857_ Destroyed Multitool. 02857_ HN-9QG(u) cries out in pain. 02857_ HN-9QG(u) destroyed. 02906_ 4L-MR0 cries out in pain. 02906_ 4L-MR0 destroyed. 02910_ Dropped Battle Cannon. 02911_ Acquired Multitool. 02922_ KW-2T0(R): "LEAVESUB!" Map ----- +----------------------------------------------------+ | ????????????????????????????####??## #????????? | | ???????????????????????????### ####" ####?????? | | ???????????????????????????# """"" ##????? | | ??????????????????????????## """""" ##???? | | ?????????????????????????## ##??? | | ?????????????????????????# ## #??? | | ?????????????????????????## ######### ## #??? | | ??????????????????????????####???????###### #??? | | ??????????????????????????????????????????# #??? | | ??????????????????????????????????????????# ##??? | | ??????????????????????????????????????????# ##??? | | ???????????????#####??????????????????????# ##?? | | ??????????????##"" ##########?????????????## #?? | | ??????????????# " ##"" /= #?????????????## #?? | | ??????????????#"" ""#= ###????????????## ##?? | | ??????????????#"" "%+* "X"""#????????????# #??? | | ??????????????#"""] #"""""""#????????????# #??? | | ??????????????#" " ##########????????????## #??? | | ??????????????#"" "##????????????????????## #??? | | ??????????????# " <"######?????????????### #??? | | ??????????????##"" # #??????????#### #??? | | ???????????????#" ##?????###### #??? | | ??????????####### ## <#????## ] ##??? | | ??????????# ######< ###?## ##???? | | ???????????# ### ### #????? | | ????????????# @ ## #???? | | ????????????## ######## %% R ## ##???? | | ?????????????## % #;### ## #????? | | ??????????????## #???# ## #???? | | ???????????????# ## #???## ##?### #???? | | ?????#?????????# < ### #??#"""#???# #???? | | ????# ?????????## ## #?# ##?? &##??? ##???? | | #### ???#######?##### #?# #??## #???? #????? | | # ???# # ###??## * #?# #???# "????###????? | | ??## #### [% #### ???#""""??????????? | | ??## #? ?? """???????????? | | # ?## %# ## #?#####????????????????? | | # #?# #### #??????????????????????? | | # ### #### ####??????????????????????? | | & ## ##?????????????????????????? | | ##??????????????????????????? | | ] ##! ###???????????????????????????? | | ## # #?????????????????????????????? | | ##### ### ### #?????????????????????????????? | | #???# ##?# ?# ##?????????????????????????????? | | ##??####?? #### #??????????????????????????????? | | ##?????? ##??# ??????????????????????????????? | | #?????# ????# ?????????????????????????????? | | ##?????? ????## ????????????????????????????? | | ##?????? ??????# ???????????????????????????? | +----------------------------------------------------+ Best States ------------- Heat Dissipation 25 Energy Generation 10 Energy Capacity 250 Matter Stores 300 Matter Capacity 300 Sight Range 16 Terrain Scan Density 10 Armor Coverage 800 Evasion (%) 41 Recoil Reduction 2 Item Schematics ----------------- None Robot Schematics ------------------ None Fabricated ------------ Nothing Repaired ---------- Lgt. Treads | 31% | -10/Materials Ion Engine | 6% | -10/Materials Studied --------- None Alien Tech Used ----------------- None Achievements -------------- None Challenges ------------ None Game ------ Seed MolecularSchematicTrident Manual? 0 Play Time 00:15:18 Cumulative 425.9 hours Start 2026.04.23 @ 00:34:11 End 2026.04.23 @ 00:55:18 Sessions 1 Manual Loads 0 Difficulty Rogue Special Mode None Game No. 356 Rogue 320 Adventurer 36 Explorer 0 Win Type - Total 5 Types 2/0/0/1/0/0/0/2/0/0 Lore% 77 Gallery% 69 Achievement% 59 Wizard Run 0 Options --------- Layout 1 ASCII 0 Keyboard 0 Movement Numpad Keybinds 0 Fullscreen 1 Font 48/Smallcaps Map View 50x35 Zoom Use 0% Tactical HUD 1 Map Filters NONE Filters NONE Steam 1 RUN: a22d9559-cb22-438f-a8e1-3d9a17ed559d